bitfinex/quotes_ETHUSD_20250905
["timestamp","ask_amount","ask_price","bid_price","bid_amount"]
[1757115708523,8.611,4305.7,4305.6,45.26205903]
[1757115709282,9.841,4305.7,4305.6,45.26205903]
[1757115710420,9.841,4305.7,4305.6,42.26205903]
[1757115710626,11.071,4305.7,4305.6,45.26205903]
[1757115712224,12.301,4305.7,4305.6,45.26205903]
[1757115713329,12.301,4305.7,4305.6,54.31835903]
[1757115713529,13.531,4305.7,4305.6,54.31835903]
[1757115714023,13.531,4305.7,4305.6,51.31835903]
[1757115714319,13.531,4305.7,4305.6,54.75745903]
[1757115714523,13.531,4305.7,4305.6,54.31835903]
[1757115714699,13.531,4305.7,4305.6,54.75745903]
[1757115714900,14.761,4305.7,4305.6,54.98965903]
[1757115715533,2.75098127,4305.7,4305.6,47.84165903]
[1757115716427,3.98098127,4305.7,4305.6,47.84165903]
[1757115717806,5.21098127,4305.7,4305.6,47.84165903]
[1757115718834,5.21098127,4305.7,4305.6,47.40255903]
[1757115719031,6.44098127,4305.7,4305.6,47.40255903]
[1757115719241,6.44098127,4305.7,4305.6,54.57255903]
[1757115719410,7.18888127,4305.7,4305.6,47.82405903]
[1757115719611,9.59098127,4305.7,4305.6,49.21978966]
[1757115720435,10.82098127,4305.7,4305.6,50.01178966]
[1757115721653,8.41888127,4305.7,4305.6,50.01178966]
[1757115721804,9.64888127,4305.7,4305.6,50.01178966]
[1757115723145,8.90098127,4305.7,4305.6,50.01178966]
[1757115723340,10.13098127,4305.7,4305.6,52.27969763]
[1757115724347,10.42328127,4305.7,4305.6,55.05369763]
[1757115724710,11.65328127,4305.7,4305.6,55.05369763]
[1757115726223,13.33888127,4305.7,4305.6,55.05369763]
[1757115727876,14.56888127,4305.7,4305.6,55.05369763]
[1757115728556,13.82098127,4305.7,4305.6,57.70699763]
[1757115729047,13.82098127,4305.7,4305.6,57.93919763]
[1757115729230,15.05098127,4305.7,4305.6,58.37829763]
[1757115729632,15.05098127,4305.7,4305.6,57.93919763]
[1757115730967,16.28098127,4305.7,4305.6,57.93919763]
[1757115731419,16.28098127,4305.7,4305.6,55.05369763]
[1757115731638,16.56818127,4305.7,4305.6,55.05769763]
[1757115731944,17.01468127,4305.7,4305.6,55.05769763]
[1757115732113,16.56918127,4305.7,4305.6,55.05769763]
[1757115732313,17.79918127,4305.7,4305.6,55.05769763]
[1757115733234,18.24468127,4305.7,4305.6,55.05769763]
[1757115733938,19.47468127,4305.7,4305.6,55.05769763]
[1757115734331,19.02918127,4305.7,4305.6,55.05769763]
[1757115734650,19.02918127,4305.7,4305.6,54.99859998]
[1757115735052,19.47468127,4305.7,4305.6,55.05669763]
[1757115735352,20.70468127,4305.7,4305.6,55.05669763]
[1757115736666,21.93468127,4305.7,4305.6,55.05669763]
[1757115737868,21.20198127,4305.7,4305.6,55.05669763]
[1757115738088,22.43198127,4305.7,4305.6,55.05669763]
[1757115739367,23.16468127,4305.7,4305.6,55.05669763]
[1757115739573,24.39468127,4305.7,4305.6,55.05669763]
[1757115739742,26.84198127,4305.7,4305.6,55.05669763]
[1757115740281,24.39468127,4305.7,4305.6,55.05669763]
[1757115740896,25.62468127,4305.7,4305.6,55.05669763]
[1757115741058,25.17918127,4305.7,4305.6,55.05669763]
[1757115742201,24.89198127,4305.7,4305.6,55.05669763]
[1757115742399,26.12198127,4305.7,4305.6,55.05669763]
[1757115742602,26.40918127,4305.7,4305.6,55.05669763]
[1757115742899,26.85468127,4305.7,4305.6,55.05669763]
[1757115743599,26.40918127,4305.7,4305.6,55.05669763]
[1757115743896,27.63918127,4305.7,4305.6,55.05669763]
[1757115745122,27.35198127,4305.7,4305.6,55.05669763]
[1757115745396,28.58198127,4305.7,4305.6,55.05669763]
[1757115746799,28.86918127,4305.7,4305.6,55.05669763]
[1757115746999,30.54468127,4305.7,4305.6,55.05669763]
[1757115747600,32.99198127,4305.7,4305.6,48.13578966]
[1757115747802,32.99198127,4305.7,4305.6,52.78778966]
[1757115748499,34.22198127,4305.7,4305.6,52.78778966]
[1757115749208,31.77468127,4305.7,4305.6,52.78778966]
[1757115750193,33.00468127,4305.7,4305.6,52.78778966]
[1757115751421,35.45198127,4305.7,4305.6,52.78778966]
[1757115751621,36.68198127,4305.7,4305.6,52.78778966]
[1757115753094,37.91198127,4305.7,4305.6,52.78778966]
[1757115753442,35.46468127,4305.7,4305.6,52.78778966]
[1757115754540,36.69468127,4305.7,4305.6,52.78778966]
[1757115755823,37.92468127,4305.7,4305.6,52.78778966]
[1757115757337,39.15468127,4305.7,4305.6,52.78778966]
[1757115758044,38.42198127,4305.7,4305.6,58.24629763]
[1757115758413,38.42198127,4305.7,4305.6,57.79709763]
[1757115758615,39.65198127,4305.7,4305.6,57.79709763]
[1757115760018,40.88198127,4305.7,4305.6,58.02929763]
[1757115761345,42.11198127,4305.7,4305.6,58.02929763]
[1757115763082,43.34198127,4305.7,4305.6,58.02929763]
[1757115764644,44.57198127,4305.7,4305.6,58.02929763]
[1757115765986,45.80198127,4305.7,4305.6,58.02929763]
[1757115767282,47.03198127,4305.7,4305.6,55.58859763]
[1757115769309,48.26198127,4305.7,4305.6,55.58859763]
[1757115769705,48.26198127,4305.7,4305.6,55.28789763]
[1757115770407,51.47968127,4305.7,4305.6,52.78778966]
[1757115770614,52.70968127,4305.7,4305.6,52.78778966]
[1757115770821,50.22948127,4305.7,4305.6,52.78778966]
[1757115771175,52.70968127,4305.7,4305.6,52.78778966]
[1757115771720,50.22948127,4305.7,4305.6,52.78778966]
[1757115771878,51.45948127,4305.7,4305.6,52.78778966]
[1757115772495,53.93968127,4305.7,4305.6,52.78778966]
[1757115772690,51.45948127,4305.7,4305.6,52.78778966]
[1757115773103,51.01998127,4305.7,4305.6,52.78778966]
[1757115773320,52.68948127,4305.7,4305.6,55.05569763]
[1757115775497,53.91948127,4305.7,4305.6,55.05569763]
[1757115776719,55.14948127,4305.7,4305.6,55.05569763]
[1757115778549,56.37948127,4305.7,4305.6,55.05569763]
[1757115780327,57.60948127,4305.7,4305.6,55.05569763]
[1757115781544,56.87198127,4305.7,4305.6,54.93969763]
[1757115781729,58.39998127,4305.7,4305.6,54.93969763]
[1757115781934,58.83948127,4305.7,4305.6,54.93969763]
[1757115782134,58.10198127,4305.7,4305.6,54.93969763]
[1757115782360,58.10198127,4305.7,4305.6,55.24509763]
[1757115783142,59.33198127,4305.7,4305.6,55.24509763]
[1757115784538,60.56198127,4305.7,4305.6,55.24509763]
[1757115784772,60.56198127,4305.7,4305.6,57.71639763]
[1757115786170,61.79198127,4305.7,4305.6,57.71639763]
[1757115786341,61.79198127,4305.7,4305.6,55.24509763]
[1757115787445,63.02198127,4305.7,4305.6,55.24509763]
[1757115788280,63.02198127,4305.7,4305.6,54.93969763]
[1757115789679,64.25198127,4305.7,4305.6,55.24509763]
[1757115790891,65.48198127,4305.7,4305.6,55.24509763]
[1757115791649,65.48198127,4305.7,4305.6,55.36109763]
[1757115793090,66.71198127,4305.7,4305.6,55.36109763]
[1757115794457,67.94198127,4305.7,4305.6,55.36109763]
[1757115795160,67.94198127,4305.7,4305.6,55.05569763]
[1757115796798,69.17198127,4305.7,4305.6,55.05569763]
[1757115798499,70.40198127,4305.7,4305.6,55.05569763]
[1757115799806,71.63198127,4305.7,4305.6,55.05569763]
[1757115801713,72.86198127,4305.7,4305.6,55.05569763]
[1757115803227,74.09198127,4305.7,4305.6,55.05569763]
[1757115804495,75.32198127,4305.7,4305.6,55.05569763]
[1757115804896,75.32198127,4305.7,4305.6,55.35319763]
[1757115806039,76.55198127,4305.7,4305.6,55.35319763]
[1757115806212,76.55198127,4305.7,4305.6,55.05569763]
[1757115806945,76.84938127,4305.7,4305.6,55.05569763]
[1757115807731,78.07938127,4305.7,4305.6,55.05569763]
[1757115808814,79.30938127,4305.7,4305.6,55.05569763]
[1757115810223,79.77718127,4305.7,4305.6,55.05569763]
[1757115810423,81.00718127,4305.7,4305.6,55.05569763]
[1757115811854,82.23718127,4305.7,4305.6,55.05569763]
[1757115812231,81.76938127,4305.7,4305.6,55.05569763]
[1757115813435,82.99938127,4305.7,4305.6,55.05569763]
[1757115813924,83.46718127,4305.7,4305.6,55.05569763]
[1757115814653,85.83468127,4305.7,4305.6,48.92778966]
[1757115814965,87.06468127,4305.7,4305.6,52.78478966]
[1757115815567,84.69718127,4305.7,4305.6,52.78478966]
[1757115816555,85.92718127,4305.7,4305.6,52.78478966]
[1757115818645,87.15718127,4305.7,4305.6,52.78478966]
[1757115820064,88.38718127,4305.7,4305.6,52.78478966]
[1757115820437,87.62198127,4305.7,4305.6,52.78478966]
[1757115820742,88.38838127,4305.7,4305.6,52.78478966]
[1757115821444,89.14438127,4305.7,4305.6,52.78478966]
[1757115821643,88.85198127,4305.7,4305.6,57.69669763]
[1757115823034,90.08198127,4305.7,4305.6,57.69669763]
[1757115824479,91.31198127,4305.7,4305.6,57.69669763]
[1757115825963,92.54198127,4305.7,4305.6,57.69669763]
[1757115827692,93.77198127,4305.7,4305.6,57.69669763]
[1757115828369,93.77198127,4305.7,4305.6,55.35819763]
[1757115828971,95.00198127,4305.7,4305.6,55.35819763]
[1757115829170,95.00198127,4305.7,4305.6,55.05269763]
[1757115829396,95.29438127,4305.7,4305.6,55.05269763]
[1757115829904,95.00198127,4305.7,4305.6,55.05269763]
[1757115830598,96.23198127,4305.7,4305.6,55.05269763]
[1757115830758,96.23198127,4305.7,4305.6,55.35819763]
[1757115830959,8.81416962,4305.7,4305.6,58.14209763]
[1757115831173,1.36527934,4305.7,4305.6,58.14209763]
[1757115831396,1.36527934,4305.7,4305.6,57.92889763]
[1757115832004,2.59527934,4305.7,4305.6,55.35819763]
[1757115832297,3.36167934,4305.7,4305.6,55.05269763]
[1757115832792,2.88767934,4305.7,4305.6,55.05269763]
[1757115833190,4.11767934,4305.7,4305.6,55.05269763]
[1757115833398,4.59167934,4305.7,4305.6,53.42690797]
[1757115834315,7.06207934,4305.7,4305.6,53.8914193]
[1757115834606,5.82167934,4305.7,4305.6,53.8914193]
[1757115835807,5.82267934,4305.7,4305.6,53.8914193]
[1757115836103,7.05267934,4305.7,4305.6,53.8914193]
[1757115837811,8.28267934,4305.7,4305.6,53.8914193]
[1757115840144,9.51267934,4305.7,4305.6,53.8914193]
[1757115840500,9.51267934,4305.7,4305.6,49.2424193]
[1757115840723,9.51267934,4305.7,4305.6,53.0984193]
[1757115841338,9.51267934,4305.7,4305.6,53.8904193]
[1757115841714,10.74267934,4305.7,4305.6,53.8904193]
[1757115842313,9.97627934,4305.7,4305.6,53.8904193]
[1757115842525,9.97627934,4305.7,4305.6,54.1959193]
[1757115843041,9.97627934,4305.7,4305.6,53.8904193]
[1757115843241,11.20627934,4305.7,4305.6,53.8904193]
[1757115844823,12.43627934,4305.7,4305.6,53.8904193]
[1757115845538,12.43627934,4305.7,4305.6,54.1959193]
[1757115845743,12.43627934,4305.7,4305.6,56.5344193]
[1757115846240,13.66627934,4305.7,4305.6,56.5344193]
[1757115846601,13.66627934,4305.7,4305.6,54.1959193]
[1757115846803,13.66627934,4305.7,4305.6,53.8904193]
[1757115847530,14.89627934,4305.7,4305.6,56.5344193]
[1757115847905,14.89627934,4305.7,4305.6,54.1959193]
[1757115848944,16.12627934,4305.7,4305.6,54.1959193]
[1757115850508,17.35627934,4305.7,4305.6,54.1959193]
[1757115852014,18.58627934,4305.7,4305.6,54.1959193]
[1757115853457,19.81627934,4305.7,4305.6,54.1959193]
[1757115854454,19.81627934,4305.7,4305.6,53.8904193]
[1757115855646,21.04627934,4305.7,4305.6,53.8904193]
[1757115856759,21.80317934,4305.7,4305.6,53.8904193]
[1757115856934,23.03317934,4305.7,4305.6,53.8904193]
[1757115858343,24.26317934,4305.7,4305.6,53.8904193]
[1757115859363,23.81867934,4305.7,4305.6,53.8904193]
[1757115860458,24.73627934,4305.7,4305.6,53.8904193]
[1757115861766,25.96627934,4305.7,4305.6,53.8904193]
[1757115863032,27.19627934,4305.7,4305.6,53.8904193]
[1757115864529,28.42627934,4305.7,4305.6,53.8904193]
[1757115865837,29.65627934,4305.7,4305.6,53.8904193]
[1757115866167,29.65627934,4305.7,4305.6,54.1981193]
[1757115866368,29.65627934,4305.7,4305.6,53.8904193]
[1757115867271,30.88627934,4305.7,4305.6,53.8904193]
[1757115867567,30.88627934,4305.7,4305.6,54.1981193]
[1757115868170,30.88627934,4305.7,4305.6,53.8904193]
[1757115868689,32.11627934,4305.7,4305.6,53.8904193]
[1757115869552,32.11627934,4305.7,4305.6,54.1981193]
[1757115870185,33.34627934,4305.7,4305.6,54.1981193]
[1757115870357,33.34627934,4305.7,4305.6,53.8904193]
[1757115870552,33.65867934,4305.7,4305.6,53.8904193]
[1757115870780,36.40857934,4305.7,4305.6,51.62251133]
[1757115871571,37.63857934,4305.7,4305.6,51.62251133]
[1757115873498,38.86857934,4305.7,4305.6,48.62151133]
[1757115873792,38.86857934,4305.7,4305.6,51.62151133]
[1757115874656,40.09857934,4305.7,4305.6,51.62151133]
[1757115876201,41.32857934,4305.7,4305.6,51.62151133]
[1757115877500,41.32857934,4305.7,4305.6,44.45151133]
[1757115877695,42.55857934,4305.7,4305.6,44.45151133]
[1757115879600,40.25317934,4305.7,4305.6,44.45151133]
[1757115879795,41.48317934,4305.7,4305.6,44.45151133]
[1757115881193,42.71317934,4305.7,4305.6,44.45151133]
[1757115883110,43.94317934,4305.7,4305.6,44.45151133]
[1757115883415,43.94317934,4305.7,4305.6,51.62151133]
[1757115884476,45.17317934,4305.7,4305.6,51.62151133]
[1757115885915,46.40317934,4305.7,4305.6,51.62151133]
[1757115887019,45.64627934,4305.7,4305.6,51.62151133]
[1757115887171,46.87627934,4305.7,4305.6,51.62151133]
[1757115889313,48.10627934,4305.7,4305.6,44.45151133]
[1757115890810,49.33627934,4305.7,4305.6,44.45151133]
[1757115892550,50.56627934,4305.7,4305.6,44.45151133]
[1757115893949,51.79627934,4305.7,4305.6,44.45151133]
[1757115894538,52.51207934,4305.7,4305.6,44.45151133]
[1757115895230,53.74207934,4305.7,4305.6,51.62151133]
[1757115895634,53.02627934,4305.7,4305.6,51.62151133]
[1757115896030,53.02627934,4305.7,4305.6,56.6352193]
[1757115896234,53.02627934,4305.7,4305.6,57.0677193]
[1757115896617,54.25627934,4305.7,4305.6,57.0677193]
[1757115898872,55.48627934,4305.7,4305.6,57.0677193]
[1757115900569,56.71627934,4305.7,4305.6,57.0677193]
[1757115901272,56.71627934,4305.7,4305.6,56.6352193]
[1757115901977,57.94627934,4305.7,4305.6,56.6352193]
[1757115903384,59.17627934,4305.7,4305.6,56.6352193]
[1757115904672,60.40627934,4305.7,4305.6,56.6352193]
[1757115905604,60.40627934,4305.7,4305.6,54.1842193]
[1757115905804,60.40627934,4305.7,4305.6,53.8894193]
[1757115905958,61.63627934,4305.7,4305.6,53.8894193]
[1757115906162,62.35207934,4305.7,4305.6,53.8894193]
[1757115906877,61.92197934,4305.7,4305.6,53.8894193]
[1757115907082,62.35207934,4305.7,4305.6,53.8894193]
[1757115907283,64.72167934,4305.7,4305.6,51.62151133]
[1757115907483,65.95167934,4305.7,4305.6,51.62151133]
[1757115907964,65.95167934,4305.7,4305.6,47.76651133]
[1757115908224,65.95167934,4305.7,4305.6,36.80451133]
[1757115908516,65.95167934,4305.7,4305.6,44.45051133]
[1757115908870,67.18167934,4305.7,4305.6,44.45051133]
[1757115910474,68.41167934,4305.7,4305.6,44.45051133]
[1757115911885,69.64167934,4305.7,4305.6,44.45051133]
[1757115913183,70.87167934,4305.7,4305.6,44.45051133]
[1757115914621,72.10167934,4305.7,4305.6,44.45051133]
[1757115916144,73.33167934,4305.7,4305.6,44.45051133]
[1757115917446,74.56167934,4305.7,4305.6,44.45051133]
[1757115917658,74.56167934,4305.7,4305.6,43.194]
[1757115917834,74.8340188,4305.7,4305.6,43.193]
[1757115918158,74.8340188,4305.7,4305.6,43.985]
[1757115918932,76.0640188,4305.7,4305.6,43.985]
[1757115920244,77.2940188,4305.7,4305.6,43.985]
[1757115921757,78.5240188,4305.7,4305.6,43.985]
[1757115923062,79.7540188,4305.7,4305.6,43.985]
[1757115923251,79.48167934,4305.7,4305.6,43.985]
[1757115923585,79.48167934,4305.7,4305.6,44.44951133]
[1757115925677,80.71167934,4305.7,4305.6,44.44951133]
[1757115925841,81.94167934,4305.7,4305.6,43.985]
[1757115926778,81.94167934,4305.7,4305.6,44.44951133]
[1757115927479,83.17167934,4305.7,4305.6,44.44951133]
[1757115928045,83.17167934,4305.7,4305.6,43.985]
[1757115928380,83.17167934,4305.7,4305.6,44.44951133]
[1757115928957,84.40167934,4305.7,4305.6,44.44951133]
[1757115930491,85.63167934,4305.7,4305.6,44.44951133]
[1757115931000,83.26207934,4305.7,4305.6,44.44951133]
[1757115931171,83.26207934,4305.7,4305.6,43.985]
[1757115931556,85.53727934,4305.7,4305.6,43.985]
[1757115931961,86.76727934,4305.7,4305.6,43.985]
[1757115932157,86.76727934,4305.7,4305.6,40.132]
[1757115932356,86.76727934,4305.7,4305.6,43.985]
[1757115932778,86.76727934,4305.7,4305.6,40.132]
[1757115932977,86.76727934,4305.7,4305.6,43.985]
[1757115933164,86.76727934,4305.7,4305.6,40.132]
[1757115933385,92.58769003,4305.7,4305.6,36.34]
[1757115933602,92.58769003,4305.7,4305.6,40.193]
[1757115934812,93.81769003,4305.7,4305.6,40.193]
[1757115935377,93.81769003,4305.7,4305.6,36.224]
[1757115935584,93.81769003,4305.7,4305.6,40.077]
[1757115936019,95.04769003,4305.7,4305.6,13.45]
[1757115936225,95.04769003,4305.7,4305.6,17.303]
[1757115936522,95.04769003,4305.7,4305.6,13.45]
[1757115936821,95.04769003,4305.7,4305.6,17.303]
[1757115937188,95.04769003,4305.7,4305.6,13.45]
[1757115937401,95.04769003,4305.7,4305.6,17.303]
[1757115937600,96.27769003,4305.7,4305.6,17.303]
[1757115939253,97.50769003,4305.7,4305.6,17.303]
[1757115940426,98.73769003,4305.7,4305.6,17.303]
[1757115941839,99.96769003,4305.7,4305.6,17.303]
[1757115942521,99.96769003,4305.7,4305.6,17.304]
[1757115943311,101.19769003,4305.7,4305.6,17.304]
[1757115943936,101.19769003,4305.7,4305.3,0.004]
[1757115943937,2.32266456,4305.4,4305.3,0.004]
[1757115944109,8.07063886,4305.4,4305.3,10.904]
[1757115944314,11.25583886,4305.4,4305.3,10.904]
[1757115944548,12.48583886,4305.4,4305.3,10.904]
[1757115944852,12.48583886,4305.4,4305.3,7.05]
[1757115945046,14.38711631,4305.4,4305.3,10.904]
[1757115946033,15.61711631,4305.4,4305.3,10.904]
[1757115947414,16.84711631,4305.4,4305.3,10.904]
[1757115948823,2.32277246,4305.2,4305.1,0.004]
[1757115949069,2.32277246,4305.2,4305.1,7.05]
[1757115949233,10.77588043,4305.2,4305.1,7.05]
[1757115949938,10.77588043,4305.2,4305.1,10.904]
[1757115950146,12.00588043,4305.2,4305.1,10.904]
[1757115951554,13.23588043,4305.2,4305.1,10.904]
[1757115952982,14.46588043,4305.2,4305.1,10.904]
[1757115954476,15.69588043,4305.2,4305.1,10.904]
[1757115954875,15.69588043,4305.2,4305.1,7.05]
[1757115955071,15.69588043,4305.2,4305.1,10.904]
[1757115955738,16.92588043,4305.2,4305.1,10.904]
[1757115957144,18.15588043,4305.2,4305.1,10.904]
[1757115958701,19.38588043,4305.2,4305.1,10.904]
[1757115960284,20.61588043,4305.2,4305.1,10.904]
[1757115960865,17.73538043,4305.2,4305.1,10.904]
[1757115961066,20.61588043,4305.2,4305.1,10.904]
[1757115961291,21.11225909,4305.2,4305.1,10.904]
[1757115961458,21.11227021,4305.2,4305.1,10.904]
[1757115961658,22.34227021,4305.2,4305.1,10.904]
[1757115962157,3.0,4305.1,4304.7,0.004]
[1757115962359,2.32293433,4304.9,4304.7,0.004]
[1757115962666,2.62763433,4304.9,4304.8,7.051]
[1757115963062,4.32023433,4304.9,4304.8,7.051]
[1757115963256,4.32023433,4304.9,4304.8,10.906]
[1757115964598,5.55023433,4304.9,4304.8,10.906]
[1757115964898,7.45151178,4304.9,4304.8,10.906]
[1757115965396,6.98891178,4304.9,4304.8,10.906]
[1757115965767,8.21891178,4304.9,4304.8,10.906]
[1757115965950,8.68151178,4304.9,4304.8,10.906]
[1757115966164,9.17914511,4304.9,4304.8,10.906]
[1757115967198,10.40914511,4304.9,4304.8,10.906]
[1757115968624,11.63914511,4304.9,4304.8,10.906]
[1757115969188,11.17654511,4304.9,4304.8,10.906]
[1757115969708,10.87184511,4304.9,4304.8,10.906]
[1757115969958,12.10184511,4304.9,4304.8,10.906]
[1757115970910,12.84284511,4304.9,4304.8,10.906]
[1757115971322,14.07284511,4304.9,4304.8,10.906]
[1757115972731,15.30284511,4304.9,4304.8,10.906]
[1757115974329,16.53284511,4304.9,4304.8,10.906]
[1757115975428,15.79184511,4304.9,4304.8,10.906]
[1757115975735,17.02184511,4304.9,4304.8,10.906]
[1757115976392,17.32344511,4304.9,4304.8,10.906]
[1757115976604,17.76284511,4304.9,4304.8,10.906]
[1757115977018,18.25184511,4304.9,4304.8,13.6558]
[1757115977433,15.96893433,4304.9,4304.8,14.0942]
[1757115978296,17.19893433,4304.9,4304.8,14.0942]
[1757115979631,18.42893433,4304.9,4304.8,14.0942]
[1757115980997,19.65893433,4304.9,4304.8,14.0942]
[1757115981826,17.22,4304.9,4304.8,14.0942]
[1757115982028,19.54293433,4304.9,4304.8,14.0942]
[1757115982433,20.77293433,4304.9,4304.8,14.0942]
[1757115982953,20.77293433,4304.9,4304.8,34.0942]
[1757115983837,22.00293433,4304.9,4304.8,34.0942]
[1757115985155,23.23293433,4304.9,4304.8,34.0942]
[1757115985559,36.05132475,4304.9,4303.9,5.339]
[1757115985862,2.32342007,4304.0,4303.9,5.339]
[1757115986061,5.40272007,4304.0,4303.9,7.047]
[1757115986260,5.90091392,4304.0,4303.9,7.047]
[1757115986462,7.95314951,4304.0,4303.9,7.047]
[1757115986784,11.31094729,4304.0,4303.9,7.047]
[1757115986986,11.93469377,4304.0,4303.9,11.022]
[1757115987267,11.31094729,4304.0,4303.9,11.022]
[1757115987855,12.54094729,4304.0,4303.9,11.022]
[1757115988066,2.32385201,4303.2,4303.1,0.02]
[1757115988365,2.78861514,4303.2,4303.1,7.067]
[1757115989153,4.01861514,4303.2,4303.1,11.041]
[1757115990398,5.24861514,4303.2,4303.1,11.041]
[1757115992252,6.47861514,4303.2,4303.1,11.041]
[1757115992995,12.55791514,4303.2,4303.1,7.067]
[1757115993168,12.55791514,4303.2,4303.1,11.036]
[1757115993373,3.0,4303.1,4302.8,0.025]
[1757115993568,5.32401403,4302.9,4302.8,0.025]
[1757115993823,5.62561403,4302.9,4302.8,1.734]
[1757115994027,8.40331403,4302.9,4302.8,1.734]
[1757115994803,8.40331403,4302.9,4302.8,5.703]
[1757115995228,9.63331403,4302.9,4302.8,5.703]
[1757115995518,11.7554821,4302.9,4302.8,5.703]
[1757115995907,8.9777821,4302.9,4302.8,5.703]
[1757115996114,3.55401403,4302.9,4302.8,8.8912]
[1757115996531,4.78401403,4302.9,4302.8,8.4528]
[1757115996731,2.46,4302.9,4302.8,8.8912]
[1757115996944,2.46,4302.9,4302.8,28.8912]
[1757115997119,2.46,4302.9,4302.8,29.0072]
[1757115997544,2.46,4302.9,4302.8,40.7572]
[1757115997916,3.69,4302.9,4302.8,40.7572]
[1757115999459,4.92,4302.9,4302.8,40.7572]
[1757116000614,6.15,4302.9,4302.8,40.7572]
[1757116001478,6.15,4302.9,4302.8,45.21154879]
[1757116001642,6.15,4302.9,4302.8,48.21154879]
[1757116002057,7.38,4302.9,4302.8,48.21154879]
[1757116003483,8.61,4302.9,4302.8,48.21154879]
[1757116004840,9.84,4302.9,4302.8,48.21154879]
[1757116006361,11.07,4302.9,4302.8,48.21154879]
[1757116007453,11.07,4302.9,4302.8,48.21554879]
[1757116007646,12.3,4302.9,4302.8,48.21554879]
[1757116008080,12.3,4302.9,4302.8,55.38554879]
[1757116009069,13.53,4302.9,4302.8,55.38554879]
[1757116010071,14.3181,4302.9,4302.8,33.488]
[1757116010406,15.5481,4302.9,4302.8,37.45]
[1757116011902,16.7781,4302.9,4302.8,37.45]
[1757116013172,18.0081,4302.9,4302.8,37.45]
[1757116013814,17.535,4302.9,4302.8,37.45]
[1757116014509,18.765,4302.9,4302.8,37.45]
[1757116015908,19.995,4302.9,4302.8,37.45]
[1757116016135,20.4681,4302.9,4302.8,37.45]
[1757116017173,22.9332,4302.9,4302.8,33.488]
[1757116017402,26.43110797,4302.9,4302.8,37.444]
[1757116017600,24.1632,4302.9,4302.8,37.444]
[1757116017877,21.6981,4302.9,4302.8,37.444]
[1757116018311,24.1632,4302.9,4302.8,37.444]
[1757116018535,26.48721403,4302.9,4302.8,37.444]
[1757116018810,27.71721403,4302.9,4302.8,33.488]
[1757116019049,29.985122,4302.9,4302.8,17.441]
[1757116019390,29.985122,4302.9,4302.8,13.488]
[1757116019590,29.985122,4302.9,4302.8,17.441]
[1757116020091,31.215122,4302.9,4302.8,17.441]
[1757116022012,32.445122,4302.9,4302.8,17.441]
[1757116023453,33.675122,4302.9,4302.8,17.441]
[1757116024057,37.17108878,4302.9,4302.8,17.441]
[1757116024737,38.40108878,4302.9,4302.8,17.441]
[1757116026115,39.63108878,4302.9,4302.8,17.441]
[1757116027405,40.86108878,4302.9,4302.8,17.441]
[1757116027647,38.39598878,4302.9,4302.8,17.441]
[1757116027846,31.84401403,4302.9,4302.8,20.1197]
[1757116028157,31.84401403,4302.9,4302.8,17.441]
[1757116028337,35.09721403,4302.9,4302.8,13.488]
[1757116028517,35.09721403,4302.9,4302.8,17.433]
[1757116028700,36.32721403,4302.9,4302.8,17.433]
[1757116028916,38.595122,4302.9,4302.8,17.433]
[1757116030352,39.825122,4302.9,4302.8,17.433]
[1757116031926,41.055122,4302.9,4302.8,17.433]
[1757116032710,38.590022,4302.9,4302.8,17.433]
[1757116033440,39.820022,4302.9,4302.8,17.433]
[1757116034919,41.050022,4302.9,4302.8,17.433]
[1757116035119,40.261922,4302.9,4302.8,17.7257]
[1757116036107,44.707722,4302.9,4302.8,17.426]
[1757116037429,45.937722,4302.9,4302.8,17.426]
[1757116038754,47.167722,4302.9,4302.8,17.426]
[1757116038926,50.66391222,4302.9,4302.8,13.488]
[1757116039451,47.74371222,4302.9,4302.8,17.43]
[1757116039620,48.20361222,4302.9,4302.8,17.43]
[1757116040130,49.43361222,4302.9,4302.8,17.43]
[1757116041337,48.67811222,4302.9,4302.8,17.43]
[1757116041657,49.90811222,4302.9,4302.8,17.43]
[1757116042761,50.20371222,4302.9,4302.8,17.43]
[1757116042962,51.43371222,4302.9,4302.8,17.43]
[1757116043668,48.43371222,4302.9,4302.8,17.43]
[1757116043875,48.89361222,4302.9,4302.8,17.43]
[1757116044037,48.13811222,4302.9,4302.8,20.1695]
[1757116044361,48.871922,4302.9,4302.8,20.1695]
[1757116044520,48.871922,4302.9,4302.8,20.6204]
[1757116044714,46.54790797,4302.9,4302.8,20.6204]
[1757116044958,44.28,4302.9,4302.8,20.6204]
[1757116045481,44.28,4302.9,4302.8,20.7364]
[1757116045638,45.51,4302.9,4302.8,20.7364]
[1757116047177,46.74,4302.9,4302.8,20.2855]
[1757116047484,46.74,4302.9,4302.8,20.7364]
[1757116048069,46.74,4302.9,4302.8,40.7364]
[1757116048446,47.97,4302.9,4302.8,40.7364]
[1757116048641,52.561922,4302.9,4302.8,37.546]
[1757116048846,52.561922,4302.9,4302.8,37.8387]
[1757116049170,47.97,4302.9,4302.8,20.2855]
[1757116049365,47.97,4302.9,4302.8,20.7364]
[1757116049768,49.2,4302.9,4302.8,20.7364]
[1757116050309,49.2,4302.9,4302.8,22.24724763]
[1757116050484,49.2,4302.9,4302.8,23.15524763]
[1757116050798,49.2,4302.9,4302.8,25.4231556]
[1757116051097,50.43,4302.9,4302.8,25.4231556]
[1757116051985,50.43,4302.9,4302.8,45.4231556]
[1757116052685,51.66,4302.9,4302.8,45.4231556]
[1757116054094,52.89,4302.9,4302.8,45.4231556]
[1757116055256,54.12,4302.9,4302.8,45.4231556]
[1757116056666,55.35,4302.9,4302.8,45.4231556]
[1757116057894,55.35,4302.9,4302.8,48.4231556]
[1757116058079,56.58,4302.9,4302.8,48.3071556]
[1757116058472,56.10391711,4302.9,4302.8,48.3071556]
[1757116059395,57.33391711,4302.9,4302.8,48.3071556]
[1757116060874,58.56391711,4302.9,4302.8,48.3071556]
[1757116062172,59.79391711,4302.9,4302.8,48.3071556]
[1757116063598,61.02391711,4302.9,4302.8,48.3071556]
[1757116064904,62.25391711,4302.9,4302.8,48.3071556]
[1757116066403,63.48391711,4302.9,4302.8,48.3071556]
[1757116067492,63.48391711,4302.9,4302.8,55.4771556]
[1757116067692,64.71391711,4302.9,4302.8,55.4771556]